fUST/lending_fUST_20240731
["ID","MTS","AMOUNT","RATE_DAILY","PERIOD"]
[333702742,1722377444999,-500.0,0.00014792,2]
[333702743,1722377445012,-500.0,0.00014792,2]
[333702744,1722377445022,-500.0,0.00014792,2]
[333702745,1722377445032,-500.0,0.00014792,2]
[333702746,1722377445042,-560.50610452,0.00014792,2]
[333702747,1722377445052,-500.0,0.00014792,2]
[333702748,1722377445062,-500.0,0.00014792,2]
[333702749,1722377445072,-500.0,0.00014792,2]
[333702750,1722377445083,-285.67854041,0.00014792,2]
[333702751,1722377445092,-500.0,0.00014792,2]
[333702752,1722377445103,-500.0,0.00014792,2]
[333702753,1722377445113,-500.0,0.00014792,2]
[333702754,1722377445122,-520.41,0.00014792,2]
[333702755,1722377445132,-308.07521683,0.00014792,2]
[333702756,1722377445142,-500.0,0.00014792,2]
[333702757,1722377445153,-195.67935358,0.00014792,2]
[333702758,1722377445163,-500.0,0.00014792,2]
[333702759,1722377445172,-228.77730767,0.00014792,2]
[333702760,1722377445182,-500.0,0.00014792,2]
[333702761,1722377445191,-500.0,0.00014792,2]
[333702762,1722377445201,-500.0,0.00014792,2]
[333702763,1722377445212,-500.0,0.00014792,2]
[333702764,1722377445225,-500.0,0.00014792,2]
[333702765,1722377445236,-500.0,0.00014792,2]
[333702766,1722377445245,-500.0,0.00014792,2]
[333702767,1722377445256,-500.0,0.00014792,2]
[333702768,1722377445266,-500.0,0.00014792,2]
[333702769,1722377445276,-500.0,0.00014792,2]
[333702770,1722377445285,-500.0,0.00014792,2]
[333702771,1722377445295,-500.0,0.00014792,2]
[333702772,1722377445304,-503.92551539,0.00014792,2]
[333702773,1722377445314,-500.0,0.00014792,2]
[333702774,1722377445323,-500.0,0.00014792,2]
[333702775,1722377445332,-500.0,0.00014792,2]
[333702776,1722377445342,-500.0,0.00014792,2]
[333702777,1722377445351,-500.0,0.00014792,2]
[333702778,1722377445364,-500.0,0.00014792,2]
[333702779,1722377445373,-265.789588,0.00014792,2]
[333702780,1722377445383,-500.0,0.00014792,2]
[333702781,1722377445395,-151.0,0.00014792,2]
[333702782,1722377445405,-151.0,0.00014792,2]
[333702783,1722377445415,-151.0,0.00014792,2]
[333702784,1722377445425,-151.0,0.00014792,2]
[333702785,1722377445437,-151.0,0.00014792,2]
[333702786,1722377445448,-151.0,0.00014792,2]
[333702787,1722377445457,-151.0,0.00014792,2]
[333702788,1722377445469,-151.0,0.00014792,2]
[333702789,1722377445481,-538.439953,0.00014792,2]
[333702790,1722377445494,-538.439953,0.00014792,2]
[333702791,1722377445508,-151.0,0.00014792,2]
[333702792,1722377445517,-318.099071,0.00014792,2]
[333702793,1722377445526,-346.988978,0.00014792,2]
[333702794,1722377445535,-318.099071,0.00014792,2]
[333702795,1722377445544,-189.96254,0.00014792,2]
[333702796,1722377445553,-189.96254,0.00014792,2]
[333702797,1722377445562,-151.0,0.00014792,2]
[333702798,1722377445571,-151.0,0.00014792,2]
[333702799,1722377445580,-151.0,0.00014792,2]
[333702800,1722377445589,-151.0,0.00014792,2]
[333702801,1722377445599,-151.0,0.00014792,2]
[333702802,1722377445608,-151.0,0.00014792,2]
[333702803,1722377445618,-544.735781,0.00014792,2]
[333702804,1722377445628,-544.735781,0.00014792,2]
[333702805,1722377445638,-544.735781,0.00014792,2]
[333702806,1722377445649,-544.735781,0.00014792,2]
[333702807,1722377445660,-151.0,0.00014792,2]
[333702808,1722377445670,-211.57973,0.00014792,2]
[333702809,1722377445682,-211.57973,0.00014792,2]
[333702810,1722377445693,-211.57973,0.00014792,2]
[333702811,1722377445704,-211.57973,0.00014792,2]
[333702812,1722377445716,-151.0,0.00014792,2]
[333702813,1722377445726,-151.0,0.00014792,2]
[333702814,1722377445736,-500.0,0.00014792,2]
[333702815,1722377445746,-206.83919,0.00014792,2]
[333702816,1722377445758,-151.0,0.00014792,2]
[333702817,1722377445768,-151.0,0.00014792,2]
[333702818,1722377445780,-151.0,0.00014792,2]
[333702819,1722377445792,-151.0,0.00014792,2]
[333702820,1722377445802,-151.0,0.00014792,2]
[333702821,1722377445811,-151.0,0.00014792,2]
[333702822,1722377445822,-1598.09,0.00014793,2]
[333702823,1722377445832,-1182.3,0.00014793,2]
[333702824,1722377445843,-446.52,0.00014793,2]
[333702825,1722377445853,-500.0,0.00014793,2]
[333702826,1722377445863,-500.0,0.00014793,2]
[333702827,1722377445875,-500.0,0.00014793,2]
[333702828,1722377445886,-500.0,0.00014793,2]
[333702829,1722377445897,-294.78,0.00014793,2]
[333702830,1722377445908,-500.0,0.00014793,2]
[333702831,1722377445919,-500.0,0.00014793,2]
[333702832,1722377445928,-275.89,0.00014793,2]
[333702833,1722377445940,-500.0,0.00014793,2]
[333702834,1722377445950,-623.11,0.00014793,2]
[333702835,1722377445961,-220.06121678,0.00014793,2]
[333702836,1722377445976,-500.0,0.00014793,2]
[333702837,1722377445988,-436.2348469,0.00014793,2]
[333702838,1722377445999,-500.0,0.00014793,2]
[333702839,1722377446009,-908.46,0.00014793,2]
[333702840,1722377446018,-908.46,0.00014793,2]
[333702841,1722377446027,-908.46,0.00014793,2]
[333702842,1722377446037,-908.46,0.00014793,2]
[333702843,1722377446046,-908.46,0.00014793,2]
[333702844,1722377446055,-908.46,0.00014793,2]
[333702845,1722377446064,-908.46,0.00014793,2]
[333702846,1722377446073,-908.46,0.00014793,2]
[333702847,1722377446083,-908.54,0.00014793,2]
[333702848,1722377446093,-1167.6,0.00014793,2]
[333702849,1722377446103,-566.54,0.00014793,2]
[333702850,1722377446112,-2930.05,0.00014793,2]
[333702851,1722377446122,-1890.66,0.00014793,2]
[333702852,1722377446131,-1355.75,0.00014793,2]
[333702853,1722377446141,-500.0,0.00014793,2]
[333702854,1722377446151,-500.0,0.00014793,2]
[333702855,1722377446161,-527.08,0.00014793,2]
[333702856,1722377446171,-1362.08,0.00014793,2]
[333702857,1722377446182,-500.0,0.00014793,2]
[333702858,1722377446191,-500.0,0.00014793,2]
[333702859,1722377446201,-500.0,0.00014793,2]
[333702860,1722377446210,-500.0,0.00014793,2]
[333702861,1722377446224,-500.0,0.00014793,2]
[333702862,1722377446235,-500.0,0.00014793,2]
[333702863,1722377446247,-325.6,0.00014793,2]
[333702864,1722377446258,-500.0,0.00014793,2]
[333702865,1722377446269,-500.0,0.00014793,2]
[333702866,1722377446281,-583.84,0.00014793,2]
[333702867,1722377446293,-441.34,0.00014793,2]
[333702868,1722377446306,-500.0,0.00014793,2]
[333702870,1722377446318,-500.0,0.00014793,2]
[333702871,1722377446328,-151.0,0.00014793,2]
[333702872,1722377446339,-151.0,0.00014793,2]
[333702874,1722377446350,-151.0,0.00014793,2]
[333702875,1722377446364,-151.0,0.00014793,2]
[333702876,1722377446374,-151.0,0.00014793,2]
[333702877,1722377446384,-538.439953,0.00014793,2]
[333702878,1722377446396,-538.439953,0.00014793,2]
[333702879,1722377446408,-538.439953,0.00014793,2]
[333702880,1722377446417,-538.439953,0.00014793,2]
[333702881,1722377446427,-151.0,0.00014793,2]
[333702882,1722377446439,-151.0,0.00014793,2]
[333702883,1722377446452,-318.099071,0.00014793,2]
[333702884,1722377446463,-318.099071,0.00014793,2]
[333702885,1722377446475,-346.988978,0.00014793,2]
[333702886,1722377446484,-346.988978,0.00014793,2]
[333702887,1722377446493,-318.099071,0.00014793,2]
[333702888,1722377446502,-318.099071,0.00014793,2]
[333702889,1722377446512,-189.96254,0.00014793,2]
[333702890,1722377446523,-189.96254,0.00014793,2]
[333702891,1722377446534,-189.96254,0.00014793,2]
[333702892,1722377446546,-189.96254,0.00014793,2]
[333702893,1722377446557,-151.0,0.00014793,2]
[333702895,1722377446567,-151.0,0.00014793,2]
[333702897,1722377446577,-151.0,0.00014793,2]
[333702899,1722377446589,-151.0,0.00014793,2]
[333702918,1722377446764,-151.0,0.00014793,2]
[333702920,1722377446775,-151.0,0.00014793,2]
[333702922,1722377446786,-151.0,0.00014793,2]
[333702924,1722377446795,-151.0,0.00014793,2]
[333702926,1722377446806,-151.0,0.00014793,2]
[333702927,1722377446815,-544.735781,0.00014793,2]
[333702928,1722377446826,-544.735781,0.00014793,2]
[333702930,1722377446837,-544.735781,0.00014793,2]
[333702932,1722377446847,-544.735781,0.00014793,2]
[333702933,1722377446861,-211.57973,0.00014793,2]
[333702934,1722377446873,-211.57973,0.00014793,2]
[333702935,1722377446883,-211.57973,0.00014793,2]
[333702936,1722377446892,-211.57973,0.00014793,2]
[333702937,1722377446903,-151.0,0.00014793,2]
[333702938,1722377446914,-151.0,0.00014793,2]
[333702939,1722377446925,-500.0,0.00014793,2]
[333702940,1722377446937,-500.0,0.00014793,2]
[333702941,1722377446947,-500.0,0.00014793,2]
[333702942,1722377446959,-500.0,0.00014793,2]
[333702943,1722377446972,-500.0,0.00014793,2]
[333702944,1722377446981,-500.0,0.00014793,2]
[333702945,1722377446991,-500.0,0.00014793,2]
[333702946,1722377447001,-636.963996,0.00014793,2]
[333702947,1722377447013,-151.0,0.00014793,2]
[333702948,1722377447023,-151.0,0.00014793,2]
[333702949,1722377447032,-151.0,0.00014793,2]
[333702950,1722377447044,-151.0,0.00014793,2]
[333702951,1722377447054,-151.0,0.00014793,2]
[333702952,1722377447064,-151.0,0.00014793,2]
[333702953,1722377447074,-511.19361316,0.00014794,5]
[333702954,1722377447084,-500.0,0.00014794,2]
[333702955,1722377447094,-500.0,0.00014794,2]
[333702956,1722377447104,-500.0,0.00014794,2]
[333702957,1722377447113,-500.0,0.00014794,2]
[333702958,1722377447123,-500.0,0.00014794,2]
[333702959,1722377447133,-521.85,0.00014794,2]
[333702960,1722377447143,-500.0,0.00014794,2]
[333702961,1722377447154,-500.0,0.00014794,2]
[333702962,1722377447164,-500.0,0.00014794,2]
[333702963,1722377447173,-500.0,0.00014794,2]
[333702964,1722377447183,-500.0,0.00014794,2]
[333702965,1722377447193,-500.0,0.00014794,2]
[333702966,1722377447203,-500.0,0.00014794,2]
[333702967,1722377447213,-500.0,0.00014794,2]
[333702968,1722377447223,-950.33,0.00014794,2]
[333702969,1722377447234,-444.03283035,0.00014794,2]
[333702970,1722377447244,-500.0,0.00014794,2]
[333702971,1722377447254,-1064.41,0.00014794,2]
[333702972,1722377447263,-500.0,0.00014794,2]
[333702973,1722377447273,-500.0,0.00014794,2]
[333702974,1722377447283,-1401.73,0.00014794,2]
[333702975,1722377447292,-253.37515882,0.00014794,2]
[333702976,1722377447302,-511.45,0.00014794,2]
[333702977,1722377447312,-599.59,0.00014794,2]
[333702978,1722377447322,-786.59,0.00014794,2]
[333702979,1722377447332,-1405.12,0.00014794,2]
[333702980,1722377447342,-500.0,0.00014794,2]
[333702981,1722377447352,-161.96211783,0.00014794,2]
[333702982,1722377447365,-1182.37,0.00014794,2]
[333702983,1722377447374,-1132.06,0.00014794,2]
[333702984,1722377447384,-717.88,0.00014794,2]
[333702985,1722377447394,-500.0,0.00014794,2]
[333702986,1722377447404,-500.0,0.00014794,2]
[333702987,1722377447415,-192.93583292,0.00014794,2]
[333702988,1722377447424,-500.0,0.00014794,2]
[333702989,1722377447435,-500.0,0.00014794,2]
[333702990,1722377447447,-500.0,0.00014794,2]
[333702991,1722377447456,-500.0,0.00014794,2]
[333702992,1722377447468,-500.0,0.00014794,2]
[333702993,1722377447478,-1046.37,0.00014794,2]
[333702994,1722377447490,-500.0,0.00014794,2]
[333702995,1722377447500,-500.0,0.00014794,2]
[333702996,1722377447509,-500.0,0.00014794,2]
[333702997,1722377447519,-500.0,0.00014794,2]
[333702998,1722377447531,-1059.36,0.00014794,2]
[333702999,1722377447540,-500.0,0.00014794,2]
[333703000,1722377447549,-1086.91,0.00014794,2]
[333703001,1722377447559,-1067.24,0.00014794,2]
[333703002,1722377447569,-500.0,0.00014794,2]
[333703003,1722377447579,-500.0,0.00014794,2]
[333703004,1722377447588,-500.0,0.00014794,2]
[333703005,1722377447597,-809.95,0.00014794,2]
[333703006,1722377447606,-500.0,0.00014794,2]
[333703007,1722377447619,-1009.09,0.00014794,2]
[333703008,1722377447632,-294.75247785,0.00014794,2]
[333703009,1722377447641,-500.0,0.00014794,2]
[333703010,1722377447650,-500.0,0.00014794,2]
[333703011,1722377447660,-1220.36,0.00014794,2]
[333703012,1722377447671,-1971.26133966,0.00014794,2]
[333703013,1722377448525,-740.24866034,0.00014794,2]
[333703014,1722377448639,-500.0,0.00014794,2]
[333703015,1722377448731,-500.0,0.00014794,2]
[333703016,1722377448837,-41.415648,0.00014794,2]
[333703017,1722377449407,-458.584352,0.00014794,2]
[333703018,1722377449418,-298.48219871,0.00014794,2]
[333703019,1722377449431,-201.51780129,0.00014794,2]
[333703020,1722377449444,-500.0,0.00014794,2]
[333703021,1722377449455,-500.0,0.00014794,2]
[333703022,1722377449467,-500.0,0.00014794,2]
[333703023,1722377449478,-500.0,0.00014794,2]
[333703024,1722377449489,-880.26,0.00014794,2]
[333703025,1722377449499,-500.0,0.00014794,2]
[333703026,1722377449508,-516.22,0.00014794,2]
[333703027,1722377449518,-500.0,0.00014794,2]
[333703028,1722377449527,-500.0,0.00014794,2]
[333703029,1722377449537,-1432.43,0.00014794,2]
[333703030,1722377449548,-500.0,0.00014794,2]
[333703031,1722377449559,-500.0,0.00014794,2]
[333703032,1722377449569,-500.0,0.00014794,2]
[333703033,1722377449578,-500.0,0.00014794,2]
[333703034,1722377449588,-500.0,0.00014794,2]
[333703035,1722377449599,-500.0,0.00014794,2]
[333703036,1722377449608,-1492.59,0.00014794,2]
[333703037,1722377449619,-643.09,0.00014794,2]
[333703038,1722377449629,-500.0,0.00014794,2]
[333703039,1722377449641,-500.0,0.00014794,2]
[333703040,1722377449652,-500.0,0.00014794,2]
[333703041,1722377449663,-500.0,0.00014794,2]
[333703042,1722377449673,-500.0,0.00014794,2]
[333703043,1722377449682,-675.05,0.00014794,2]
[333703044,1722377449695,-935.53,0.00014794,2]
[333703045,1722377449705,-500.0,0.00014794,2]
[333703046,1722377449715,-500.0,0.00014794,2]
[333703047,1722377449728,-500.0,0.00014794,2]
[333703048,1722377449738,-500.0,0.00014794,2]
[333703049,1722377449749,-888.43,0.00014794,2]
[333703050,1722377449759,-500.0,0.00014794,2]
[333703051,1722377449769,-809.6,0.00014794,2]
[333703052,1722377449780,-6227.88,0.00014794,2]
[333703053,1722377449791,-500.0,0.00014794,2]
[333703054,1722377449801,-1481.52,0.00014794,2]
[333703055,1722377449810,-688.86,0.00014794,2]
[333703056,1722377449820,-500.0,0.00014794,2]
[333703057,1722377449830,-1027.58,0.00014794,2]
[333703058,1722377449841,-842.62,0.00014794,2]
[333703059,1722377449851,-500.0,0.00014794,2]
[333703060,1722377449861,-500.0,0.00014794,2]
[333703061,1722377449872,-1895.8,0.00014794,2]
[333703062,1722377449882,-500.0,0.00014794,2]
[333703063,1722377449892,-977.51,0.00014794,2]
[333703064,1722377449903,-2335.08,0.00014794,2]
[333703065,1722377449914,-605.2,0.00014794,2]
[333703066,1722377449926,-1646.98,0.00014794,2]
[333703067,1722377449936,-1592.29,0.00014794,2]
[333703068,1722377449946,-7324.08,0.00014794,2]
[333703069,1722377449956,-30.44129699,0.00014794,2]
[333703070,1722377449973,-469.55870301,0.00014794,2]
[333703071,1722377449984,-500.0,0.00014794,2]
[333703072,1722377449995,-500.0,0.00014794,2]
[333703073,1722377450005,-2027.26,0.00014794,2]
[333703074,1722377450017,-500.0,0.00014794,2]
[333703075,1722377450027,-1072.73,0.00014794,2]
[333703076,1722377450038,-4999.3,0.00014794,2]
[333703077,1722377450048,-461.14920126,0.00014794,2]
[333703078,1722377450112,-583.71079874,0.00014794,2]
[333703079,1722377450124,-3712.37,0.00014794,2]
[333703080,1722377450135,-500.0,0.00014794,2]
[333703081,1722377450148,-907.73,0.00014794,2]
[333703082,1722377450159,-398.64241473,0.00014794,2]
[333703083,1722377450172,-810.58758527,0.00014794,2]
[333703084,1722377450184,-1257.79,0.00014794,2]
[333703085,1722377450195,-500.0,0.00014794,2]
[333703086,1722377450206,-500.0,0.00014794,2]
[333703087,1722377450218,-500.0,0.00014794,2]
[333703088,1722377450228,-1863.68,0.00014794,2]
[333703089,1722377450237,-2270.31,0.00014794,2]
[333703090,1722377450246,-500.0,0.00014794,2]
[333703091,1722377450256,-1991.49,0.00014794,2]
[333703092,1722377450267,-500.0,0.00014794,2]
[333703093,1722377450279,-2047.68,0.00014794,2]
[333703094,1722377450289,-500.0,0.00014794,2]
[333703095,1722377450301,-23.73170854,0.00014794,2]
[333703097,1722377485609,200.86966759,0.0001212,2]
[333703098,1722377485633,68.0069395,0.0001212,2]
[333703104,1722377706722,13949.68215346,0.0001,15]
[333703113,1722378434172,-166.854788,0.00012986,2]
[333703114,1722378434195,-166.666666,0.00013228,2]
[333703115,1722378434224,-98.4716065,0.00013515,2]
[333703116,1722378454115,-61.4596495,0.00013515,2]
[333703117,1722378454139,-527.0441706,0.000136,2]
[333703118,1722378454163,-3.2177507,0.00013655,2]
[333703270,1722378638850,-156.7135053,0.00013655,2]
[333703271,1722378638860,-159.931256,0.00013796,2]
[333703272,1722378638870,-159.931256,0.00013937,2]
[333703273,1722378638879,-159.931256,0.00014078,2]
[333703275,1722378638888,-166.666666,0.00014129,2]
[333703276,1722378638898,-159.931256,0.00014219,2]
[333703278,1722378638907,-551.318916,0.00014247,2]
[333703280,1722378638918,-535.50949,0.00014247,2]
[333703282,1722378638930,-1885.47766474,0.00014288,2]
[333703284,1722378638941,-1252.18596335,0.00014588,2]
[333703286,1722378638951,-367.69126021,0.00014642,2]
[333703288,1722378638960,-3487.58360796,0.0001468,2]
[333703289,1722378638975,-4646.51215197,0.0001468,2]
[333703290,1722378638998,-4975.24662457,0.0001468,2]
[333703291,1722378639008,-500.0,0.00014686,2]
[333703292,1722378639020,-500.0,0.00014686,2]
[333703293,1722378639030,-1706.79,0.00014686,2]
[333703294,1722378639040,-500.0,0.00014686,2]
[333703295,1722378639051,-500.0,0.00014686,2]
[333703296,1722378639063,-492.83893177,0.00014686,2]
[333703297,1722378639073,-500.0,0.00014686,2]
[333703298,1722378639082,-500.0,0.00014686,2]
[333703299,1722378639093,-741.74,0.00014687,2]
[333703300,1722378639104,-500.0,0.00014687,2]
[333703301,1722378639115,-632.83,0.00014687,2]
[333703302,1722378639124,-500.0,0.00014687,2]
[333703303,1722378639134,-500.0,0.00014687,2]
[333703304,1722378639144,-500.0,0.00014687,2]
[333703305,1722378639154,-500.0,0.00014688,2]
[333703306,1722378639165,-217.78729524,0.00014688,2]
[333703307,1722378639176,-500.0,0.00014688,2]
[333703308,1722378639188,-501.10551533,0.00014688,2]
[333703309,1722378639199,-500.0,0.00014688,2]
[333703310,1722378639210,-278.36770862,0.00014688,2]
[333703311,1722378639220,-361.47385651,0.00014688,2]
[333703383,1722378643936,-158.96848,0.00013725,2]
[333703385,1722378643947,-173.03152001,0.00014688,2]
[333703478,1722378647217,-423.42462348,0.00014688,2]
[333703479,1722378647226,-858.89,0.00014688,2]
[333703480,1722378647235,-1204.12,0.00014688,2]
[333703481,1722378647245,-500.0,0.00014688,2]
[333703483,1722378647255,-500.0,0.00014688,2]
[333703485,1722378647265,-500.0,0.00014688,2]
[333703487,1722378647275,-502.04888662,0.00014688,2]
[333703489,1722378647285,-500.0,0.00014688,2]
[333703491,1722378647295,-500.0,0.00014688,2]
[333703493,1722378647305,-500.0,0.00014688,2]
[333703495,1722378647314,-500.0,0.00014688,2]
[333703497,1722378647325,-500.0,0.00014689,2]
[333703499,1722378647334,-500.0,0.00014689,2]
[333703501,1722378647343,-517.28779489,0.00014689,2]
[333703503,1722378647353,-500.0,0.00014689,2]
[333703505,1722378647365,-500.0,0.00014689,2]
[333703506,1722378647375,-500.0,0.00014689,2]
[333703507,1722378647385,-457.05700759,0.00014689,2]
[333703508,1722378647395,-644.36153241,0.00014689,2]
[333703509,1722378647405,-235.00718168,0.00014689,2]
[333703510,1722378647415,-336.97411328,0.00014689,2]
[333703511,1722378647425,-500.0,0.00014689,2]
[333703512,1722378647434,-500.0,0.00014689,2]
[333703513,1722378647444,-500.0,0.00014689,2]
[333703514,1722378647455,-500.0,0.00014689,2]
[333703515,1722378647465,-500.0,0.00014689,2]
[333703516,1722378647478,-500.0,0.00014689,2]
[333703517,1722378647488,-500.0,0.00014689,2]
[333703518,1722378647498,-500.0,0.00014689,2]
[333703519,1722378647508,-500.0,0.00014689,2]
[333703520,1722378647519,-503.02995321,0.00014689,2]
[333703521,1722378647530,-207.3017877,0.00014689,2]
[333703531,1722379627294,-166.854788,0.00012986,2]
[333703532,1722379627323,-166.666666,0.00013285,2]
[333703533,1722379627347,-258.0476268,0.00013699,2]
[333703534,1722379627368,-254.349567,0.00013699,2]
[333703535,1722379627389,-331.789829,0.00013699,2]
[333703536,1722379627410,-750.0,0.00014247,2]
[333703537,1722379627431,-305.782167,0.00014247,2]
[333703538,1722379627451,-367.69126021,0.00014384,2]
[333703539,1722379627473,-93.50401676,0.00014409,2]
[333703540,1722379628121,-795.40533402,0.00014409,2]
[333703541,1722379628143,-620.00000903,0.00014474,2]
[333703542,1722379628165,-287.0,0.00014687,2]
[333703543,1722379628187,-287.0,0.00014687,2]
[333703544,1722379628212,-953.27,0.00014688,2]
[333703545,1722379628234,-490.06740636,0.00014688,2]
[333703546,1722379749128,-188.3868603,9.9e-05,2]
[333703630,1722379837918,-166.666666,0.00013454,2]
[333703631,1722379837927,-1052.74418975,0.0001459,2]
[333703638,1722379839941,-42.91852819,0.0001459,2]
[333703639,1722379839952,-3370.31974877,0.0001468,2]
[333703640,1722379839964,-1947.70694653,0.0001468,2]
[333703641,1722379839975,-3473.81944957,0.0001468,2]
[333703642,1722379840006,-1958.1,0.0001468,2]
[333703653,1722379842925,-1868.65474123,0.0001468,2]
[333703654,1722379842935,-4937.84525877,0.00014681,2]
[333703676,1722379846121,-7680.75562733,0.00014681,2]
[333703677,1722379846133,-9.93259364,0.00014688,2]
[333703678,1722379846144,-161.89522307,0.00014689,2]
[333703679,1722379846158,-198.32423413,0.00014689,2]
[333703680,1722379846167,-238.26239249,0.00014689,2]
[333703681,1722379846177,-180.0,0.00014689,2]
[333703682,1722379846188,-500.0,0.00014689,2]
[333703683,1722379846200,-500.0,0.00014689,2]
[333703684,1722379846210,-500.0,0.00014689,2]
[333703685,1722379846222,-500.0,0.00014689,2]
[333703686,1722379846234,-500.0,0.00014689,2]
[333703687,1722379846244,-360.83201624,0.00014689,2]
[333703688,1722379849911,166.854788,0.00012986,2]
[333703689,1722379877152,346.6801112,0.000132,2]
[333703693,1722380745146,-166.854788,0.00012986,2]
[333703694,1722380745171,-74.90283112,0.00013229,2]
[333703695,1722380836114,-166.873849,0.00012986,2]
[333703696,1722380836136,-193.401543,0.00013144,2]
[333703697,1722380836158,-300.0,0.00013698,2]
[333703698,1722380836179,-1505.0,0.00013699,2]
[333703699,1722380836201,-3000.0,0.00013699,2]
[333703700,1722380836222,-161.700297,0.00013699,2]
[333703701,1722380836245,-555.95992715,0.00014202,2]
[333703702,1722380843111,-44.04007285,0.00014202,2]
[333703703,1722380843134,-750.0,0.00014247,2]
[333703704,1722380843159,-310.194554,0.00014247,2]
[333703705,1722380843182,-367.69126021,0.0001431,2]
[333703706,1722380843206,-152.61196378,0.00014341,2]
[333703707,1722380843229,-1786.15762848,0.00014427,2]
[333703732,1722381038391,-232.59818709,0.00014584,2]
[333703733,1722381038403,-1253.289,0.0001461,2]
[333703734,1722381038414,-163.32812017,0.00014678,2]
[333703756,1722381040338,-136.67187983,0.00014678,2]
[333703757,1722381040348,-300.0,0.00014678,2]
[333703758,1722381040358,-228.94797994,0.00014679,2]
[333703759,1722381040370,-271.05202006,0.00014679,2]
[333703760,1722381040381,-500.0,0.00014679,2]
[333703761,1722381040391,-500.0,0.00014679,2]
[333703762,1722381040400,-416.08433117,0.00014679,2]
[333703763,1722381040413,-83.91566883,0.00014679,2]
[333703764,1722381040423,-201.38321374,0.00014679,2]
[333703765,1722381040606,-68.0069395,0.00014679,2]
[333703770,1722381044093,-230.60984676,0.00014679,2]
[333703771,1722381044103,-500.0,0.00014679,2]
[333703772,1722381044113,-500.0,0.00014679,2]
[333703773,1722381044123,-232.52083474,0.00014679,2]
[333703774,1722381044132,-500.0,0.00014679,2]
[333703775,1722381044142,-500.0,0.00014679,2]
[333703776,1722381044151,-500.0,0.00014679,2]
[333703777,1722381044162,-500.0,0.00014679,2]
[333703778,1722381044171,-202.79975361,0.00014679,2]
[333703798,1722381719978,151.0,0.00027,120]
[333703800,1722381937159,-165.853393,0.00012986,2]
[333703801,1722381937182,-193.401543,0.00013117,2]
[333703802,1722381937208,-200.4212966,0.00013492,2]
[333703803,1722381937232,-191.05534111,0.00013699,2]
[333703804,1722382027118,-40.21868049,0.00013699,2]
[333703805,1722382027145,-160.334388,0.00013699,2]
[333703806,1722382027174,-1301.14861329,0.00013699,2]
[333703807,1722382027201,-500.0,0.00013794,7]
[333703808,1722382027226,-712.5,0.00014247,2]
[333703809,1722382027252,-294.684826,0.00014247,2]
[333703810,1722382027280,-2470.72799209,0.00014336,2]
[333703811,1722382027305,-367.69126021,0.00014395,2]
[333703812,1722382027331,-620.00017219,0.00014438,2]
[333703813,1722382027355,-227.0,0.00014499,2]
[333703814,1722382027381,-4660.33563853,0.000145,2]
[333703815,1722382093414,209.09286746,9.999e-05,2]
[333703823,1722382123420,209.09286746,9.999e-05,2]
[333703854,1722382232390,-160.3343893,0.00013699,2]
[333703856,1722382232401,-1740.81464278,0.000145,2]
[333703858,1722382232413,-1076.5935,0.000145,2]